bitfinex-derivatives/quotes_BTCF0:USTF0_20250101
["timestamp","ask_amount","ask_price","bid_price","bid_amount"]
[1735760740820,0.5196497,94502.0,94501.0,0.053038]
[1735760742118,0.5196497,94502.0,94501.0,0.054038]
[1735760742527,0.5196497,94502.0,94501.0,0.057038]
[1735760744434,0.5196497,94502.0,94501.0,0.004]
[1735760747433,0.4666117,94502.0,94490.0,0.0015875]
[1735760747632,0.4666117,94502.0,94472.0,0.0318]
[1735760747633,0.3608,94491.0,94481.0,0.05305]
[1735760747840,0.413849,94482.0,94481.0,0.05305]
[1735760748323,0.05305,94481.0,94468.0,0.053057]
[1735760748527,0.053057,94469.0,94468.0,0.053057]
[1735760749030,0.053059,94464.0,94463.0,0.06435517]
[1735760749237,0.413859,94464.0,94463.0,0.06435517]
[1735760749625,0.51971439,94464.0,94463.0,0.05306]
[1735760749827,0.46665539,94464.0,94463.0,0.05306]
[1735760750229,0.10585539,94464.0,94463.0,0.05306]
[1735760750436,0.10685539,94464.0,94463.0,0.05306]
[1735760750630,0.001,94464.0,94463.0,0.05306]
[1735760750935,0.10686099,94464.0,94463.0,0.05306]
[1735760752638,0.10786099,94464.0,94463.0,0.05306]
[1735760755030,0.33975229,94474.0,94461.0,0.01131939]
[1735760755236,0.10586099,94464.0,94461.0,0.053061]
[1735760755546,0.053057,94469.0,94460.0,0.10780044]
[1735760755731,0.053057,94469.0,94468.0,0.053057]
[1735760756233,0.10585987,94469.0,94468.0,0.053057]
[1735760756437,0.01105498,94496.0,94467.0,0.3608]
[1735760756634,0.053043,94494.0,94493.0,0.053043]
[1735760757240,0.10582738,94494.0,94493.0,0.053043]
[1735760757739,0.053041,94497.0,94496.0,0.053041]
[1735760758439,0.15886838,94497.0,94496.0,0.053041]
[1735760759437,0.15886838,94497.0,94487.0,0.03]
[1735760759438,0.10582738,94497.0,94487.0,0.04109742]
[1735760759637,0.053044,94493.0,94490.0,0.053045]
[1735760759832,0.007,94497.0,94487.0,0.01109742]
[1735760760038,0.10582962,94492.0,94486.0,0.053047]
[1735760760335,0.053047,94487.0,94486.0,0.053047]
[1735760760736,0.10582962,94491.0,94482.0,0.413849]
[1735760760737,0.053049,94483.0,94482.0,0.413849]
[1735760761243,0.15888422,94483.0,94482.0,0.413849]
[1735760761741,0.15888422,94483.0,94482.0,0.053049]
[1735760762841,0.15888422,94483.0,94476.0,0.053053]
[1735760763034,0.053052,94477.0,94476.0,0.053053]
[1735760763734,0.053056,94472.0,94471.0,0.053055]
[1735760764347,0.15890242,94472.0,94471.0,0.053055]
[1735760765137,0.10584642,94472.0,94470.0,0.3608]
[1735760765341,0.053056,94471.0,94470.0,0.3608]
[1735760765839,0.15890802,94471.0,94470.0,0.3608]
[1735760766934,0.16190802,94471.0,94470.0,0.3608]
[1735760767736,0.16290802,94471.0,94470.0,0.3608]
[1735760769638,0.10985202,94471.0,94461.0,0.413861]
[1735760769946,0.053061,94462.0,94461.0,0.42516362]
[1735760770551,0.15891919,94462.0,94461.0,0.413861]
[1735760770944,0.15891919,94462.0,94461.0,0.414861]
[1735760771248,0.15891919,94462.0,94461.0,0.001]
[1735760771649,0.053061,94461.0,94460.0,0.3608]
[1735760772248,0.15892535,94461.0,94460.0,0.3608]
[1735760772850,0.15892535,94461.0,94460.0,0.3618]
[1735760773052,0.15892535,94461.0,94460.0,0.414862]
[1735760773253,0.15892535,94461.0,94460.0,0.415862]
[1735760774457,0.15892535,94461.0,94460.0,0.055062]
[1735760795457,0.15892535,94461.0,94460.0,0.002]
[1735760798864,0.15892535,94461.0,94460.0,0.3628]
[1735760799063,0.0110976,94471.0,94460.0,0.3628]
[1735760799266,0.3608,94511.0,94460.0,0.3628]
[1735760799267,0.0332,94484.0,94483.0,0.053022]
[1735760799460,0.01262386,94488.0,94483.0,0.7216]
[1735760799768,0.053012,94501.0,94488.0,0.053019]
[1735760800071,0.053012,94501.0,94500.0,0.413812]
[1735760800470,0.08621,94506.0,94502.0,0.053011]
[1735760800662,0.05301,94505.0,94502.0,0.053011]
[1735760801062,0.15883626,94505.0,94500.0,0.3608]
[1735760801268,0.003,94501.0,94500.0,0.413812]
[1735760801769,0.053003,94517.0,94515.0,0.053004]
[1735760801969,0.053003,94517.0,94516.0,0.7216]
[1735760804572,0.062003,94517.0,94516.0,0.7226]
[1735760804767,0.009,94517.0,94516.0,0.7226]
[1735760804981,0.0352,94536.0,94516.0,1.0226]
[1735760805166,0.1,94550.0,94535.0,0.774593]
[1735760805167,0.052992,94538.0,94535.0,0.774593]
[1735760805366,0.10580163,94538.0,94536.0,0.052992]
[1735760805676,0.0352,94549.0,94536.0,0.052992]
[1735760805871,0.052989,94543.0,94539.0,0.10780044]
[1735760806072,0.052989,94543.0,94536.0,0.052992]
[1735760806272,0.00214716,94571.0,94536.0,0.3]
[1735760806575,0.00056001,94612.0,94580.0,0.3608]
[1735760806765,0.1,94625.0,94623.0,0.052943]
[1735760806964,0.052935,94639.0,94624.0,0.29947153]
[1735760807170,0.052935,94639.0,94638.0,0.10661381]
[1735760807371,0.10410582,94655.0,94638.0,0.10661381]
[1735760807570,0.10410582,94655.0,94649.0,0.3608]
[1735760807769,0.052927,94653.0,94649.0,0.3608]
[1735760807975,0.15703182,94655.0,94649.0,0.3608]
[1735760808377,0.01105945,94672.0,94649.0,0.3608]
[1735760808576,0.0465,94675.0,94674.0,0.052915]
[1735760808773,0.0221189,94675.0,94674.0,0.052915]
[1735760809070,0.2,94700.0,94674.0,0.3]
[1735760809277,0.2,94700.0,94699.0,0.3608]
[1735760809873,0.55834845,94700.0,94699.0,0.3608]
[1735760810071,0.50544745,94700.0,94682.0,0.3608]
[1735760810372,0.2,94700.0,94690.0,0.1611141]
[1735760810773,0.10559717,94699.0,94694.0,0.3608]
[1735760810968,0.2,94700.0,94694.0,0.3608]
[1735760811165,0.3608,94719.0,94694.0,0.6608]
[1735760811370,0.3608,94719.0,94709.0,0.1611141]
[1735760811672,0.00158465,94721.0,94717.0,0.3608]
[1735760811979,0.46640052,94718.0,94707.0,0.3608]
[1735760812279,0.46640052,94718.0,94696.0,0.3608]
[1735760812280,0.052896,94709.0,94706.0,0.3608]
[1735760812482,0.29687341,94719.0,94706.0,0.3608]
[1735760812780,0.10557543,94720.0,94709.0,0.003]
[1735760812981,0.05289,94719.0,94715.0,0.3608]
[1735760813473,0.10558045,94718.0,94715.0,0.3608]
[1735760813676,0.3608,94738.0,94715.0,0.3608]
[1735760813880,0.3608,94738.0,94724.0,0.3608]
[1735760815175,0.052891,94717.0,94715.0,0.013]
[1735760815382,0.052887,94725.0,94716.0,0.3608]
[1735760815584,0.052882,94734.0,94716.0,0.3608]
[1735760815777,0.3608,94722.0,94715.0,0.009]
[1735760815979,0.052891,94717.0,94715.0,0.009]
[1735760816380,0.052895,94711.0,94706.0,0.3608]
[1735760816876,0.3608,94722.0,94706.0,0.3608]
[1735760816877,0.052897,94707.0,94706.0,0.3608]
[1735760817271,0.052897,94707.0,94706.0,0.3073]
[1735760817474,0.052897,94707.0,94706.0,0.2628]
[1735760817774,0.15848414,94707.0,94706.0,0.009]
[1735760817970,0.15848414,94707.0,94706.0,0.004]
[1735760818181,0.15848414,94707.0,94690.0,0.36238409]
[1735760818479,0.413706,94691.0,94690.0,0.00158409]
[1735760819177,0.15849537,94691.0,94690.0,0.00158409]
[1735760819375,0.10558937,94691.0,94690.0,0.36238409]
[1735760819775,0.10558937,94691.0,94690.0,0.36738409]
[1735760820176,0.052905,94692.0,94690.0,0.36738409]
[1735760820372,0.001,94691.0,94690.0,0.37138409]
[1735760820578,0.10660721,94691.0,94690.0,0.37138409]
[1735760820784,0.10660721,94691.0,94690.0,0.37838409]
[1735760820977,0.10660721,94691.0,94690.0,0.37738409]
[1735760821379,0.10660721,94691.0,94690.0,0.37038409]
[1735760821679,0.10660721,94691.0,94690.0,0.37238409]
[1735760822484,0.10660721,94691.0,94690.0,0.36838409]
[1735760822681,0.10660721,94691.0,94690.0,0.37338409]
[1735760822986,0.10660721,94691.0,94690.0,0.36838409]
[1735760823184,0.10660721,94691.0,94690.0,0.37738409]
[1735760823588,0.3608,94734.0,94690.0,0.66838409]
[1735760823881,0.10560721,94721.0,94713.0,0.052893]
[1735760824085,0.10560721,94721.0,94720.0,0.3608]
[1735760824288,0.3608,94734.0,94720.0,0.3608]
[1735760824488,0.052888,94723.0,94720.0,0.3608]
[1735760824877,0.001,94722.0,94720.0,0.3608]
[1735760825386,0.10657766,94722.0,94720.0,0.3608]
[1735760825981,0.15946666,94722.0,94720.0,0.3608]
[1735760826187,0.15846666,94722.0,94720.0,0.3608]
[1735760826386,0.15846666,94722.0,94720.0,0.3628]
[1735760826589,0.15846666,94722.0,94720.0,0.3678]
[1735760827590,0.052889,94722.0,94720.0,0.3678]
[1735760827783,0.3608,94743.0,94720.0,0.3678]
[1735760827986,0.3608,94743.0,94729.0,0.3608]
[1735760828296,0.4,94750.0,94729.0,0.3608]
[1735760828297,0.1,94750.0,94747.0,0.052874]
[1735760828587,0.1,94750.0,94749.0,0.3608]
[1735760829389,0.1,94775.0,94749.0,0.3608]
[1735760829390,0.04937625,94761.0,94757.0,0.052869]
[1735760829690,0.04937625,94761.0,94760.0,0.3608]
[1735760829888,0.10554145,94774.0,94767.0,0.052863]
[1735760829889,0.05286,94773.0,94767.0,0.052863]
[1735760830183,0.052859,94774.0,94773.0,0.3608]
[1735760830595,0.052867,94761.0,94760.0,0.3608]
[1735760831183,0.15838562,94761.0,94760.0,0.3608]
[1735760831684,0.16038562,94761.0,94760.0,0.3608]
[1735760832389,0.001,94761.0,94760.0,0.413667]
[1735760832590,0.001,94761.0,94760.0,0.3608]
[1735760834788,0.3608,94817.0,94760.0,0.3608]
[1735760834985,0.052851,94790.0,94780.0,0.3608]
[1735760835185,0.052851,94790.0,94760.0,0.3608]
[1735760835186,0.3608,94784.0,94760.0,0.3608]
[1735760835386,0.4611141,94790.0,94749.0,0.3608]
[1735760835387,0.052873,94750.0,94749.0,0.3608]
[1735760835893,0.15838605,94750.0,94749.0,0.3608]
[1735760836094,0.15828605,94750.0,94749.0,0.3608]
[1735760836791,0.10554145,94750.0,94749.0,0.3648]
[1735760836979,0.15841445,94750.0,94749.0,0.3648]
[1735760837180,0.352873,94750.0,94749.0,0.3648]
[1735760837386,0.45841445,94750.0,94749.0,0.3648]
[1735760837582,0.15841445,94750.0,94749.0,0.3648]
[1735760837888,0.15841445,94750.0,94749.0,0.3658]
[1735760838282,0.15841445,94750.0,94749.0,0.3618]
[1735760838479,0.15841445,94750.0,94749.0,0.3648]
[1735760838697,0.15841445,94750.0,94749.0,0.3668]
[1735760839187,0.15841445,94750.0,94749.0,0.82177004]
[1735760839587,0.15841445,94750.0,94749.0,0.81777004]
[1735760839778,0.15841445,94750.0,94749.0,0.82277004]
[1735760840185,0.15841445,94750.0,94749.0,0.82177004]
[1735760840396,0.15841445,94750.0,94749.0,0.67974076]
[1735760840979,0.15841445,94750.0,94749.0,0.68074076]
[1735760841581,0.40547471,94750.0,94749.0,0.31994076]
[1735760841781,0.40547471,94750.0,94730.0,0.3608]
[1735760841782,0.76627471,94750.0,94730.0,0.3608]
[1735760842087,0.052883,94731.0,94730.0,0.3608]
[1735760842894,0.15843503,94731.0,94730.0,0.3608]
[1735760843197,0.34191845,94748.0,94730.0,0.3608]
[1735760843382,0.10556262,94731.0,94730.0,0.3608]
[1735760843690,0.5219141,94750.0,94730.0,0.78603412]
[1735760843997,0.15844562,94731.0,94730.0,0.78603412]
[1735760844191,0.052883,94731.0,94730.0,0.3648]
[1735760844588,0.10555203,94731.0,94730.0,0.3648]
[1735760844788,0.15843503,94731.0,94730.0,0.3648]
[1735760844994,0.15843503,94731.0,94730.0,0.3738]
[1735760844995,0.052883,94731.0,94730.0,0.3738]
[1735760845191,0.15843503,94731.0,94730.0,0.3738]
[1735760845395,0.15843503,94731.0,94730.0,0.62409937]
[1735760845884,0.15943503,94731.0,94730.0,0.62309937]
[1735760846493,0.15843503,94731.0,94730.0,0.61509937]
[1735760846692,0.15943503,94731.0,94730.0,0.3728]
[1735760847406,0.15943503,94731.0,94730.0,0.3718]
[1735760847586,0.10655203,94731.0,94730.0,0.3718]
[1735760848187,0.10555203,94731.0,94730.0,0.3718]
[1735760848494,0.052879,94740.0,94730.0,0.3718]
[1735760848688,0.052883,94731.0,94730.0,0.3718]
[1735760849195,0.052883,94731.0,94730.0,0.3638]
[1735760849402,0.15844562,94731.0,94730.0,0.3708]
[1735760849584,0.15844562,94731.0,94730.0,0.3678]
[1735760849790,0.15844562,94731.0,94730.0,0.3708]
[1735760850187,0.05287,94756.0,94730.0,0.3708]
[1735760850392,0.05287,94756.0,94755.0,0.3608]
[1735760850594,0.0070059,94776.0,94755.0,0.3608]
[1735760850795,0.052862,94770.0,94769.0,0.3608]
[1735760851195,0.15842462,94770.0,94769.0,0.3608]
[1735760852899,0.16242462,94770.0,94769.0,0.3618]
[1735760853402,0.16242462,94770.0,94769.0,0.3608]
[1735760853795,0.11156262,94770.0,94769.0,0.3608]
[1735760853989,0.16442462,94770.0,94769.0,0.3608]
[1735760856003,0.16042462,94770.0,94769.0,0.3608]
[1735760856199,0.16442462,94770.0,94769.0,0.3608]
[1735760856708,0.14826149,94770.0,94769.0,0.3608]
[1735760858300,0.052865,94765.0,94764.0,0.18808675]
[1735760858913,0.052866,94763.0,94762.0,0.18808675]
[1735760859610,0.15839297,94763.0,94762.0,0.18808675]
[1735760860312,0.15839297,94763.0,94756.0,0.3608]
[1735760860313,0.052867,94760.0,94756.0,0.3608]
[1735760860514,0.10552697,94763.0,94756.0,0.3608]
[1735760860708,0.052869,94758.0,94756.0,0.3608]
[1735760861209,0.001,94763.0,94756.0,0.3608]
[1735760861407,0.052869,94757.0,94756.0,0.3608]
[1735760861611,0.04939033,94775.0,94756.0,0.41367]
[1735760861920,0.04939033,94775.0,94772.0,0.3608]
[1735760862211,0.1055331,94774.0,94772.0,0.3608]
[1735760862819,0.1583921,94774.0,94772.0,0.3608]
[1735760863008,0.052859,94774.0,94772.0,0.3608]
[1735760863206,0.10551472,94773.0,94772.0,0.3618]
[1735760864415,0.04931472,94773.0,94772.0,0.7226]
[1735760864820,0.05131472,94773.0,94772.0,0.7226]
[1735760865321,0.05131472,94773.0,94772.0,0.7216]
[1735760865322,0.10417472,94773.0,94772.0,0.7216]
[1735760867924,0.052852,94788.0,94772.0,1.0216]
[1735760868133,0.052852,94788.0,94787.0,0.3608]
[1735760868424,0.05285,94792.0,94791.0,0.052848]
[1735760868720,0.3,94800.0,94791.0,0.3608]
[1735760868919,0.352845,94800.0,94799.0,0.3358]
[1735760869323,0.48838238,94800.0,94799.0,0.3358]
[1735760869623,0.39358035,94800.0,94799.0,0.3358]
[1735760869826,0.49906613,94800.0,94799.0,0.3358]
[1735760870627,0.50306613,94800.0,94799.0,0.3368]
[1735760871123,0.50506613,94800.0,94799.0,0.3378]
[1735760871625,0.45222113,94800.0,94788.0,0.3608]
[1735760871826,0.1611141,94798.0,94788.0,0.3608]
[1735760872125,0.04073535,94789.0,94788.0,0.3608]
[1735760872627,0.70153535,94789.0,94777.0,0.3608]
[1735760872828,0.70153535,94789.0,94743.0,0.00878667]
[1735760872829,0.3608,94778.0,94747.0,0.3608]
[1735760873027,0.04073535,94748.0,94747.0,0.3608]
[1735760873632,0.14627903,94748.0,94747.0,0.3608]
[1735760874025,0.04073535,94748.0,94747.0,0.3608]
[1735760874630,0.04073535,94748.0,94747.0,0.3638]
[1735760875127,0.5219141,94780.0,94747.0,0.6638]
[1735760875329,0.5219141,94780.0,94768.0,0.3608]
[1735760875634,0.10554368,94776.0,94768.0,0.3608]
[1735760875828,0.052858,94777.0,94768.0,0.3608]
[1735760876030,0.10554368,94775.0,94768.0,0.3608]
[1735760876225,0.1611141,94790.0,94770.0,0.3608]
[1735760876532,0.1611141,94790.0,94781.0,0.3608]
[1735760876533,0.052854,94784.0,94781.0,0.3608]
[1735760876724,0.052855,94783.0,94781.0,0.3608]
[1735760877135,0.10551695,94782.0,94781.0,0.3608]
[1735760878122,0.10551695,94782.0,94770.0,0.3608]
[1735760878324,0.1611141,94780.0,94770.0,0.3608]
[1735760878735,0.3608,94777.0,94770.0,0.3608]
[1735760879328,0.003,94775.0,94770.0,0.3608]
[1735760879729,0.052861,94772.0,94770.0,0.3608]
[1735760880627,0.10551751,94771.0,94770.0,0.3608]
[1735760881728,0.10551751,94771.0,94770.0,0.413662]
[1735760882136,0.002,94772.0,94770.0,0.413662]
[1735760882434,0.005,94772.0,94770.0,0.413662]
[1735760883219,0.005,94771.0,94770.0,0.413662]
[1735760883728,0.002,94771.0,94770.0,0.413662]
[1735760883932,0.003,94772.0,94770.0,0.413662]
[1735760884122,0.005,94772.0,94770.0,0.413662]
[1735760885321,0.003,94771.0,94770.0,0.3608]
[1735760885931,0.002,94771.0,94770.0,0.3608]
[1735760886629,0.005,94771.0,94770.0,0.3608]
[1735760887624,0.005,94771.0,94760.0,0.3608]
[1735760887822,0.005,94771.0,94770.0,0.3608]
[1735760888232,0.6608,94800.0,94770.0,0.713662]
[1735760888439,0.3,94800.0,94795.0,0.3608]
[1735760888735,0.10551806,94799.0,94795.0,0.3608]
[1735760889037,0.10551806,94799.0,94797.0,0.052846]
[1735760889530,0.3,94800.0,94799.0,0.052846]
[1735760889732,0.305,94800.0,94799.0,0.052846]
[1735760889935,0.308,94800.0,94799.0,0.413646]
[1735760890235,0.036,94826.0,94818.0,0.052835]
[1735760890438,0.05311,94839.0,94823.0,0.413632]
[1735760890936,0.10548578,94824.0,94823.0,0.3608]
[1735760892225,0.10548578,94824.0,94823.0,0.3618]
[1735760893526,0.10548578,94824.0,94823.0,0.3628]
[1735760893726,0.10548578,94824.0,94823.0,0.002]
[1735760894435,0.44409426,94824.0,94806.0,0.3608]
[1735760894739,0.3608,94814.0,94806.0,0.3608]
[1735760895331,0.10545908,94813.0,94806.0,0.3608]
[1735760895524,0.10545908,94813.0,94806.0,0.3618]
[1735760895837,0.1611141,94820.0,94806.0,0.3628]
[1735760896227,0.1054741,94812.0,94806.0,0.3628]
[1735760896428,0.1611141,94820.0,94806.0,0.3628]
[1735760896828,0.10547076,94811.0,94806.0,0.3628]
[1735760897030,0.1611141,94820.0,94806.0,0.3628]
[1735760897236,0.10547076,94810.0,94806.0,0.3628]
[1735760897544,0.1611141,94820.0,94806.0,0.3628]
[1735760897727,0.10547076,94809.0,94806.0,0.3628]
[1735760898229,0.0344,94819.0,94806.0,0.3628]
[1735760898435,0.10547076,94808.0,94806.0,0.3628]
[1735760898638,0.0344,94819.0,94806.0,0.3618]
[1735760898833,0.3608,94816.0,94806.0,0.002]
[1735760899031,0.3608,94816.0,94806.0,0.001]
[1735760899346,0.3608,94816.0,94806.0,0.002]
[1735760899541,0.10547688,94815.0,94806.0,0.002]
[1735760900635,0.3608,94807.0,94806.0,0.002]
[1735760900839,0.3608,94807.0,94783.0,0.3608]
[1735760901036,0.3608,94797.0,94783.0,0.3608]
[1735760901735,0.10549636,94796.0,94783.0,0.3608]
[1735760902837,0.052853,94786.0,94783.0,0.3608]
[1735760903038,0.052853,94786.0,94783.0,0.3618]
[1735760903228,0.052844,94801.0,94788.0,0.052852]
[1735760903434,0.3608,94807.0,94783.0,0.3618]
[1735760903637,0.10550248,94795.0,94794.0,0.3608]
[1735760903840,0.3608,94807.0,94794.0,0.3608]
[1735760904333,0.10550248,94806.0,94794.0,0.3608]
[1735760904639,0.10548467,94806.0,94794.0,0.3608]
[1735760904842,0.10548467,94806.0,94803.0,0.3608]
[1735760905035,0.10548467,94806.0,94803.0,0.413643]
[1735760905336,0.28679013,94819.0,94803.0,0.3608]
[1735760905530,0.25239013,94819.0,94811.0,0.3608]
[1735760905735,0.25239013,94819.0,94817.0,0.052835]
[1735760906742,0.0887093,94824.0,94817.0,0.052835]
[1735760906935,0.0887093,94824.0,94823.0,0.3608]
[1735760907138,0.1941745,94824.0,94823.0,0.3608]
[1735760907836,0.1054652,94824.0,94823.0,0.3608]
[1735760909635,0.19450317,94824.0,94823.0,0.3608]
[1735760909836,0.19450317,94824.0,94823.0,0.3618]
[1735760910134,0.19450317,94824.0,94823.0,0.3628]
[1735760910742,0.1054652,94824.0,94823.0,0.3628]
[1735760915857,0.19409891,94824.0,94823.0,0.002]
[1735760916348,0.36640351,94824.0,94823.0,0.002]
[1735760916749,0.36640351,94824.0,94805.0,0.3608]
[1735760916750,0.1611141,94820.0,94805.0,0.3608]
[1735760917361,0.10545908,94819.0,94805.0,0.3608]
[1735760918356,0.10545908,94819.0,94816.0,0.052836]
[1735760918765,0.10545908,94819.0,94805.0,0.3618]
[1735760918766,0.1611141,94830.0,94817.0,0.052835]
[1735760919057,0.10547188,94824.0,94817.0,0.052835]
[1735760919262,0.1611141,94830.0,94817.0,0.052835]
[1735760919454,0.10547188,94823.0,94817.0,0.052835]
[1735760919761,0.3608,94828.0,94817.0,0.052835]
[1735760919959,0.3608,94828.0,94817.0,0.053835]
[1735760920153,0.20351817,94822.0,94817.0,0.053835]
[1735760920353,0.09805575,94822.0,94817.0,0.001]
[1735760920667,0.10546353,94821.0,94817.0,0.001]
[1735760921054,0.10546353,94821.0,94817.0,0.002]
[1735760921654,0.10546353,94821.0,94817.0,0.001]
[1735760921655,0.09805575,94820.0,94817.0,0.001]
[1735760921857,0.09805575,94820.0,94817.0,0.002]
[1735760922362,0.10546409,94819.0,94817.0,0.001]
[1735760922553,0.10546409,94819.0,94817.0,0.002]
[1735760923554,0.10546409,94819.0,94817.0,0.001]
[1735760923750,0.10546409,94819.0,94817.0,0.002]
[1735760924563,0.10646409,94819.0,94817.0,0.002]
[1735760924863,0.001,94819.0,94817.0,0.002]
[1735760925252,0.55181427,94818.0,94799.0,0.052845]
[1735760925454,0.55181427,94818.0,94796.0,0.052847]
[1735760925455,0.1611141,94810.0,94796.0,0.052847]
[1735760925653,0.5219141,94810.0,94792.0,0.3608]
[1735760926164,0.3608,94793.0,94773.0,0.3956]
[1735760926559,0.3608,94801.0,94788.0,0.052852]
[1735760926765,0.3608,94801.0,94792.0,0.001]
[1735760927158,0.10550415,94800.0,94792.0,0.001]
[1735760928453,0.0364,94799.0,94787.0,0.3608]
[1735760929153,0.10548968,94798.0,94792.0,0.001]
[1735760929565,0.10548968,94798.0,94787.0,0.3608]
[1735760929771,0.0346,94797.0,94777.0,0.18835984]
[1735760929963,0.1611141,94787.0,94777.0,0.18835984]
[1735760930363,0.10549079,94786.0,94777.0,0.18835984]
[1735760930962,0.10549079,94786.0,94773.0,0.18835984]
[1735760931162,0.052858,94777.0,94773.0,0.18835984]
[1735760931761,0.10551305,94776.0,94774.0,0.052859]
[1735760932157,0.10551305,94776.0,94771.0,0.18835984]
[1735760932158,0.052854,94784.0,94778.0,0.052857]
[1735760932362,0.052854,94784.0,94771.0,0.18835984]
[1735760932658,0.052855,94782.0,94776.0,0.052858]
[1735760932862,0.052855,94782.0,94773.0,0.001]
[1735760932863,0.052855,94782.0,94777.0,0.052858]
[1735760933062,0.10550637,94781.0,94777.0,0.052858]
[1735760933561,0.10550637,94781.0,94778.0,0.052857]
[1735760933963,0.10550637,94781.0,94773.0,0.001]
[1735760934166,0.10550637,94781.0,94780.0,0.3608]
[1735760934464,0.001,94784.0,94783.0,0.052854]
[1735760934968,0.001,94782.0,94781.0,0.052856]
[1735760935468,0.14124105,94810.0,94781.0,0.052856]
[1735760935682,0.05236228,94809.0,94792.0,0.3608]
[1735760935873,0.10550582,94809.0,94808.0,0.052841]
[1735760936173,0.0359,94823.0,94818.0,0.052834]
[1735760936560,0.10550582,94822.0,94818.0,0.052834]
[1735760937067,0.19148115,94822.0,94818.0,0.052834]
[1735760937761,0.19148115,94822.0,94821.0,0.052833]
[1735760937962,0.10750582,94822.0,94821.0,0.052833]
[1735760938875,0.10850582,94822.0,94821.0,0.001]
[1735760939668,0.48567573,94822.0,94821.0,0.001]
[1735760939866,0.12487573,94822.0,94821.0,0.002]
[1735760940276,0.30855292,94822.0,94821.0,0.002]
[1735760940878,0.29218301,94822.0,94821.0,0.002]
[1735760941372,0.3086141,94822.0,94821.0,0.002]
[1735760941674,0.30861498,94822.0,94821.0,0.002]
[1735760942571,0.29218301,94822.0,94821.0,0.002]
[1735760945374,0.19438812,94822.0,94821.0,0.002]
[1735760946373,0.10850582,94822.0,94821.0,0.002]
[1735760947381,0.10850582,94822.0,94821.0,0.054833]
[1735760947563,0.03530228,94846.0,94821.0,0.054833]
[1735760947763,0.03530228,94846.0,94835.0,0.052825]
[1735760948171,0.03530228,94846.0,94826.0,0.3608]
[1735760948172,0.10546131,94840.0,94839.0,0.052823]
[1735760948576,0.1913118,94840.0,94839.0,0.052823]
[1735760949872,0.08585049,94840.0,94839.0,0.052823]
[1735760950471,0.001,94841.0,94839.0,0.052823]
[1735760951280,0.03530228,94846.0,94845.0,0.05282]
[1735760952080,0.1407369,94846.0,94845.0,0.05282]
[1735760952481,0.1407369,94846.0,94845.0,0.05382]
[1735760952981,0.22643041,94846.0,94845.0,0.05382]
[1735760955676,0.22643041,94846.0,94845.0,0.001]
[1735760956478,0.22643041,94846.0,94845.0,0.05382]
[1735760956675,0.63212409,94859.0,94845.0,0.35382]
[1735760956882,0.63212409,94859.0,94858.0,0.052813]
[1735760957485,0.28522409,94870.0,94863.0,0.05281]
[1735760957875,0.39064426,94870.0,94857.0,0.37032647]
[1735760958078,0.39064426,94870.0,94865.0,0.052809]
[1735760958278,0.28522409,94870.0,94868.0,0.052807]
[1735760958482,0.3608,94871.0,94858.0,0.001]
[1735760958677,0.3608,94871.0,94869.0,0.052806]
[1735760959773,0.10540739,94870.0,94865.0,0.001]
[1735760959984,0.10540739,94870.0,94867.0,0.052807]
[1735760960186,0.10540739,94870.0,94865.0,0.001]
[1735760960485,0.3608,94871.0,94870.0,0.052806]
[1735760962576,0.32322627,94891.0,94890.0,0.052795]
[1735760962781,0.0431,94893.0,94890.0,0.052795]
[1735760963282,0.0431,94893.0,94879.0,0.052801]
[1735760963483,0.10540684,94892.0,94890.0,0.052794]
[1735760964287,0.0431,94893.0,94891.0,0.3608]
[1735760964480,0.0431,94893.0,94892.0,0.052794]
[1735760964881,0.14848296,94893.0,94892.0,0.052794]
[1735760965587,0.14848296,94893.0,94892.0,0.053794]
[1735760965790,0.14848296,94893.0,94892.0,0.001]
[1735760966690,0.14848296,94893.0,94892.0,0.002]
[1735760967488,0.50928296,94893.0,94892.0,0.001]
[1735760967684,0.50928296,94893.0,94872.0,0.052805]
[1735760967885,0.3608,94875.0,94865.0,0.052808]
[1735760968187,0.3608,94875.0,94867.0,0.052807]
[1735760968389,0.10696184,94880.0,94859.0,0.052812]
[1735760968390,0.0418,94879.0,94859.0,0.052812]
[1735760968592,0.1053824,94874.0,94870.0,0.052806]
[1735760968795,0.0418,94879.0,94871.0,0.052805]
[1735760969093,0.3608,94872.0,94863.0,0.05281]
[1735760969290,0.3608,94872.0,94858.0,0.3608]
[1735760969493,0.10540628,94871.0,94858.0,0.3608]
[1735760969885,0.46776184,94880.0,94869.0,0.3608]
[1735760969886,0.3608,94880.0,94869.0,0.3608]
[1735760970089,0.10696184,94890.0,94874.0,0.052803]
[1735760970294,0.10541295,94878.0,94876.0,0.052802]
[1735760970487,0.3608,94887.0,94869.0,0.3608]
[1735760970796,0.10539962,94877.0,94872.0,0.052805]
[1735760970987,0.3608,94877.0,94865.0,0.052808]
[1735760971587,0.10696184,94880.0,94865.0,0.052808]
[1735760971791,0.10540628,94876.0,94865.0,0.052808]
[1735760971989,0.10540628,94876.0,94861.0,0.3608]
[1735760972186,0.10696184,94871.0,94861.0,0.3608]
[1735760972990,0.10541184,94870.0,94861.0,0.3608]
[1735760973599,0.05,94869.0,94861.0,0.3608]
[1735760973795,0.05,94869.0,94861.0,0.3618]
[1735760973989,0.0395,94868.0,94861.0,0.3618]
[1735760974189,0.19101239,94868.0,94861.0,0.3628]
[1735760974686,0.19101239,94868.0,94861.0,0.3618]
[1735760974991,0.19101239,94868.0,94861.0,0.3628]
[1735760975390,0.19101239,94868.0,94861.0,0.3618]
[1735760976096,0.19101239,94868.0,94861.0,0.001]
[1735760976483,0.19101239,94868.0,94851.0,0.3608]
[1735760976687,0.10696184,94861.0,94851.0,0.3608]
[1735760977095,0.3608,94859.0,94835.0,0.052825]
[1735760977292,0.51392368,94861.0,94828.0,0.052829]